[Event "*** Titled Tuesday 3|2 Blitz (Late)"]
[Site "Chess.com"]
[Date "2016.12.06"]
[Round "5"]
[White "GrigorGrigorov"]
[Black "amurdercastle"]
[Result "0-1"]
[WhiteElo "2454"]
[BlackElo "2407"]
[TimeControl "180+2"]
[EndTime "17:59:57 PST"]
[Termination "amurdercastle won by resignation"]

1. d4 {[%clk 0:03:02]} 1... d5 {[%clk 0:03:00.8]} 2. Nf3 {[%clk 0:03:01.8]} 2...
Nf6 {[%clk 0:03:01.7]} 3. c4 {[%clk 0:03:02.8]} 3... c6 {[%clk 0:03:03]} 4. Nbd2
{[%clk 0:03:02.2]} 4... e6 {[%clk 0:03:01.9]} 5. g3 {[%clk 0:02:59.3]} 5... c5
{[%clk 0:03:02.7]} 6. cxd5 {[%clk 0:02:42.5]} 6... Qxd5 {[%clk 0:03:02.1]} 7.
dxc5 {[%clk 0:02:40.2]} 7... Bxc5 {[%clk 0:03:01.8]} 8. Bg2 {[%clk 0:02:29.5]}
8... O-O {[%clk 0:03:02]} 9. O-O {[%clk 0:02:29.8]} 9... Nc6 {[%clk 0:02:58.3]}
10. a3 {[%clk 0:02:28.1]} 10... Be7 {[%clk 0:02:40]} 11. Qb3 {[%clk 0:02:11.3]}
11... Qh5 {[%clk 0:02:33.4]} 12. Qc4 {[%clk 0:01:48.9]} 12... e5 {[%clk
0:02:28.4]} 13. b4 {[%clk 0:01:44]} 13... Rd8 {[%clk 0:02:17.6]} 14. Bb2 {[%clk
0:01:20.4]} 14... a6 {[%clk 0:02:02.7]} 15. Rfd1 {[%clk 0:01:14.8]} 15... Be6
{[%clk 0:02:02.3]} 16. Qh4 {[%clk 0:01:03.3]} 16... Qxh4 {[%clk 0:01:57.5]} 17.
Nxh4 {[%clk 0:01:03]} 17... Bd5 {[%clk 0:01:43.1]} 18. Nf5 {[%clk 0:00:58.9]}
18... Bf8 {[%clk 0:01:42.1]} 19. Ne3 {[%clk 0:00:59.3]} 19... Bxg2 {[%clk
0:01:42.6]} 20. Kxg2 {[%clk 0:01:01.2]} 20... b5 {[%clk 0:01:28.9]} 21. Rac1
{[%clk 0:00:51.9]} 21... Nd4 {[%clk 0:01:28.7]} 22. Bxd4 {[%clk 0:00:43]} 22...
exd4 {[%clk 0:01:30.6]} 23. Nc2 {[%clk 0:00:28.3]} 23... d3 {[%clk 0:01:19.4]}
24. exd3 {[%clk 0:00:29.2]} 24... Rxd3 {[%clk 0:01:21.3]} 25. Ne4 {[%clk
0:00:28.8]} 25... Rb3 {[%clk 0:01:10.8]} 26. Nxf6+ {[%clk 0:00:29.3]} 26... gxf6
{[%clk 0:01:12.7]} 27. Nd4 {[%clk 0:00:20.4]} 27... Rxa3 {[%clk 0:01:09.2]} 28.
Nf5 {[%clk 0:00:21]} 28... Bxb4 {[%clk 0:00:56.3]} 29. Rd7 {[%clk 0:00:21.5]}
29... Rc3 {[%clk 0:00:55.7]} 30. Rcd1 {[%clk 0:00:18.5]} 30... Bf8 {[%clk
0:00:51.3]} 31. Rb7 {[%clk 0:00:17.2]} 31... b4 {[%clk 0:00:45.2]} 32. Rdd7
{[%clk 0:00:16]} 32... b3 {[%clk 0:00:42.6]} 33. Ne3 {[%clk 0:00:15.2]} 33... a5
{[%clk 0:00:30.1]} 34. Nd5 {[%clk 0:00:14.7]} 34... Rc6 {[%clk 0:00:31.7]} 35.
Rxf7 {[%clk 0:00:03.4]} 35... a4 {[%clk 0:00:23.2]} 36. Rxf6 {[%clk 0:00:02.9]}
36... Rc5 {[%clk 0:00:13.4]} 37. Rf5 {[%clk 0:00:03.9]} 37... Rxd5 {[%clk
0:00:14.4]} 38. Rxd5 {[%clk 0:00:04.8]} 38... a3 {[%clk 0:00:13.7]} 39. Rg5+
{[%clk 0:00:04.7]} 39... Kh8 {[%clk 0:00:14.4]} 40. Rh5 {[%clk 0:00:06.1]} 40...
a2 {[%clk 0:00:15.2]} 41. Rbxh7+ {[%clk 0:00:05.3]} 41... Kg8 {[%clk 0:00:16.4]}
42. Rb7 {[%clk 0:00:06.1]} 42... a1=Q {[%clk 0:00:16.8]} 43. Rg5+ {[%clk
0:00:07.7]} 43... Bg7 {[%clk 0:00:18.4]} 0-1

[Event "*** Titled Tuesday 3|2 Blitz (Late)"]
[Site "Chess.com"]
[Date "2016.12.06"]
[Round "5"]
[White "Paralinch"]
[Black "AlexanderL"]
[Result "1-0"]
[WhiteElo "2666"]
[BlackElo "2583"]
[TimeControl "180+2"]
[EndTime "18:00:13 PST"]
[Termination "Paralinch won by resignation"]

1. e4 {[%clk 0:02:58.7]} 1... e6 {[%clk 0:03:00.9]} 2. d4 {[%clk 0:02:59.3]}
2... d5 {[%clk 0:02:58.6]} 3. exd5 {[%clk 0:03:01.2]} 3... exd5 {[%clk
0:02:58.7]} 4. Nf3 {[%clk 0:03:03.1]} 4... Bd6 {[%clk 0:02:58.4]} 5. Bg5 {[%clk
0:03:04.5]} 5... Ne7 {[%clk 0:02:58.2]} 6. c4 {[%clk 0:03:05.2]} 6... dxc4
{[%clk 0:02:55.7]} 7. Bxc4 {[%clk 0:03:07.1]} 7... O-O {[%clk 0:02:56.9]} 8. O-O
{[%clk 0:03:08.2]} 8... Bg4 {[%clk 0:02:48.4]} 9. h3 {[%clk 0:03:09.2]} 9... Bh5
{[%clk 0:02:47.9]} 10. g4 {[%clk 0:03:10.2]} 10... Bg6 {[%clk 0:02:48.6]} 11.
Ne5 {[%clk 0:03:11.4]} 11... Nd7 {[%clk 0:02:28.8]} 12. Nxg6 {[%clk 0:03:08.7]}
12... hxg6 {[%clk 0:02:28.9]} 13. Nc3 {[%clk 0:03:10]} 13... Nb6 {[%clk
0:02:27.3]} 14. Bb3 {[%clk 0:03:11.3]} 14... c6 {[%clk 0:02:27.3]} 15. Re1
{[%clk 0:03:11.7]} 15... Qd7 {[%clk 0:02:24.5]} 16. Ne4 {[%clk 0:03:12.9]} 16...
Ned5 {[%clk 0:02:24.8]} 17. Qf3 {[%clk 0:03:11.7]} 17... Rfe8 {[%clk 0:02:21.8]}
18. Nc5 {[%clk 0:03:11.9]} 18... Qc7 {[%clk 0:02:17.5]} 19. Rad1 {[%clk
0:03:05.6]} 19... Rab8 {[%clk 0:02:13.3]} 20. a3 {[%clk 0:03:01.3]} 20... Bf4
{[%clk 0:02:08.3]} 21. Bh4 {[%clk 0:02:39.5]} 21... g5 {[%clk 0:01:48.3]} 22.
Bg3 {[%clk 0:02:40.5]} 22... Rbd8 {[%clk 0:01:44.4]} 23. Ne4 {[%clk 0:02:41.2]}
23... Bxg3 {[%clk 0:01:11.4]} 24. fxg3 {[%clk 0:02:43.1]} 24... Qe7 {[%clk
0:01:08.8]} 25. Kg2 {[%clk 0:02:37.5]} 25... g6 {[%clk 0:01:02.1]} 26. Rd2
{[%clk 0:02:29.1]} 26... Kg7 {[%clk 0:00:58.7]} 27. Rde2 {[%clk 0:02:29.9]}
27... Qc7 {[%clk 0:00:29.8]} 28. Nxg5 {[%clk 0:02:25.1]} 28... Rxe2+ {[%clk
0:00:30.7]} 29. Rxe2 {[%clk 0:02:27]} 29... Rd6 {[%clk 0:00:31.4]} 30. Qe4
{[%clk 0:02:08.8]} 30... Qd8 {[%clk 0:00:28.6]} 31. Qe5+ {[%clk 0:02:05.1]}
31... Kg8 {[%clk 0:00:19.5]} 32. h4 {[%clk 0:01:51.8]} 32... f6 {[%clk
0:00:15.5]} 33. Qe8+ {[%clk 0:01:52.4]} 33... Qxe8 {[%clk 0:00:16.8]} 34. Rxe8+
{[%clk 0:01:54.3]} 34... Kg7 {[%clk 0:00:18.7]} 35. Ne4 {[%clk 0:01:53.8]} 35...
Rd7 {[%clk 0:00:18]} 36. Nc5 {[%clk 0:01:55.1]} 36... Rf7 {[%clk 0:00:12.4]} 37.
Ne6+ {[%clk 0:01:55.9]} 37... Kh7 {[%clk 0:00:13.5]} 38. g5 {[%clk 0:01:51.4]}
38... f5 {[%clk 0:00:10.7]} 39. Nf8+ {[%clk 0:01:48.7]} 39... Kg7 {[%clk
0:00:11.5]} 40. Ne6+ {[%clk 0:01:50.3]} 40... Kh7 {[%clk 0:00:12.9]} 41. Kf3
{[%clk 0:01:48.6]} 41... Re7 {[%clk 0:00:12.8]} 42. Rxe7+ {[%clk 0:01:44.8]}
42... Nxe7 {[%clk 0:00:14.7]} 43. Nc5 {[%clk 0:01:46.4]} 43... Nbd5 {[%clk
0:00:11.4]} 44. Nxb7 {[%clk 0:01:45.1]} 44... Nc7 {[%clk 0:00:12.7]} 45. Bc4
{[%clk 0:01:41]} 45... Kg7 {[%clk 0:00:09.3]} 46. Nc5 {[%clk 0:01:42.2]} 46...
Ned5 {[%clk 0:00:09.7]} 47. b4 {[%clk 0:01:41]} 47... Nb6 {[%clk 0:00:07.1]} 48.
Ne6+ {[%clk 0:01:37.4]} 48... Kf7 {[%clk 0:00:08.4]} 49. Nxc7+ {[%clk
0:01:26.6]} 49... Nxc4 {[%clk 0:00:09.4]} 50. b5 {[%clk 0:01:28.5]} 50... cxb5
{[%clk 0:00:07.3]} 51. Nxb5 {[%clk 0:01:29.6]} 51... a6 {[%clk 0:00:08.8]} 52.
Nc7 {[%clk 0:01:30.6]} 52... a5 {[%clk 0:00:08.5]} 53. Nb5 {[%clk 0:01:27.7]}
53... Ke6 {[%clk 0:00:08.1]} 54. Kf4 {[%clk 0:01:26.3]} 54... Nb2 {[%clk
0:00:04.4]} 55. g4 {[%clk 0:01:24.9]} 55... fxg4 {[%clk 0:00:04.2]} 56. Kxg4
{[%clk 0:01:26.4]} 56... Nd1 {[%clk 0:00:05.4]} 57. h5 {[%clk 0:01:24.5]} 57...
Ne3+ {[%clk 0:00:06.5]} 58. Kf3 {[%clk 0:01:25.4]} 58... Nf5 {[%clk 0:00:07.2]}
59. h6 {[%clk 0:01:26.6]} 59... Kf7 {[%clk 0:00:07.8]} 60. d5 {[%clk 0:01:19.2]}
1-0

[Event "*** Titled Tuesday 3|2 Blitz (Late)"]
[Site "Chess.com"]
[Date "2016.12.06"]
[Round "5"]
[White "hypert"]
[Black "FearlessKing64"]
[Result "1/2-1/2"]
[WhiteElo "2270"]
[BlackElo "2010"]
[TimeControl "180+2"]
[EndTime "18:00:43 PST"]
[Termination "Game drawn by repetition"]

1. e4 {[%clk 0:03:02]} 1... c5 {[%clk 0:03:00]} 2. Nf3 {[%clk 0:03:02.8]} 2...
d6 {[%clk 0:03:01.1]} 3. d4 {[%clk 0:03:04]} 3... cxd4 {[%clk 0:03:03]} 4. Nxd4
{[%clk 0:03:05.5]} 4... Nf6 {[%clk 0:03:04.6]} 5. Nc3 {[%clk 0:03:06.8]} 5... a6
{[%clk 0:03:06.2]} 6. Be2 {[%clk 0:03:08.2]} 6... e5 {[%clk 0:03:07.2]} 7. Nb3
{[%clk 0:03:09.2]} 7... Be7 {[%clk 0:03:08.8]} 8. O-O {[%clk 0:03:10.4]} 8...
Be6 {[%clk 0:03:10.3]} 9. Bf3 {[%clk 0:03:11.1]} 9... O-O {[%clk 0:03:10.4]} 10.
a4 {[%clk 0:03:11.9]} 10... Nbd7 {[%clk 0:03:11.4]} 11. a5 {[%clk 0:03:12.3]}
11... Rc8 {[%clk 0:03:12.4]} 12. Re1 {[%clk 0:03:12.7]} 12... Qc7 {[%clk
0:03:13]} 13. h3 {[%clk 0:03:10]} 13... h6 {[%clk 0:03:13.3]} 14. Be3 {[%clk
0:03:08.6]} 14... Qc6 {[%clk 0:03:14.5]} 15. Nc1 {[%clk 0:03:00.2]} 15... Rfd8
{[%clk 0:03:11.1]} 16. Nd3 {[%clk 0:02:52.4]} 16... d5 {[%clk 0:02:16]} 17. exd5
{[%clk 0:02:42.9]} 17... Nxd5 {[%clk 0:02:16.3]} 18. Nxd5 {[%clk 0:02:35.2]}
18... Bxd5 {[%clk 0:02:16.3]} 19. Bxd5 {[%clk 0:02:19.8]} 19... Qxd5 {[%clk
0:02:17.8]} 20. c3 {[%clk 0:01:59.5]} 20... f6 {[%clk 0:02:09.1]} 21. Qc2 {[%clk
0:01:55.1]} 21... Nc5 {[%clk 0:01:58.8]} 22. Nxc5 {[%clk 0:01:49.9]} 22... Bxc5
{[%clk 0:01:58.2]} 23. Red1 {[%clk 0:01:51.5]} 23... Qc6 {[%clk 0:01:50.5]} 24.
Rxd8+ {[%clk 0:00:59.9]} 24... Rxd8 {[%clk 0:01:52.4]} 25. Rd1 {[%clk
0:01:00.9]} 25... Rxd1+ {[%clk 0:01:47.2]} 26. Qxd1 {[%clk 0:01:02.8]} 26...
Bxe3 {[%clk 0:01:47.6]} 27. fxe3 {[%clk 0:00:52.4]} 27... Kf7 {[%clk 0:01:34.1]}
28. Qd3 {[%clk 0:00:48.1]} 28... Ke7 {[%clk 0:01:18.3]} 29. b4 {[%clk
0:00:48.4]} 29... Qd6 {[%clk 0:01:11.3]} 30. Qg6 {[%clk 0:00:40.8]} 30... Qd1+
{[%clk 0:01:08.1]} 31. Kh2 {[%clk 0:00:41]} 31... Kf8 {[%clk 0:01:06.2]} 32. Qf5
{[%clk 0:00:34.1]} 32... Qd5 {[%clk 0:00:53.9]} 33. Qc8+ {[%clk 0:00:29.6]}
33... Kf7 {[%clk 0:00:51.5]} 34. c4 {[%clk 0:00:26.8]} 34... Qe4 {[%clk
0:00:44.2]} 35. b5 {[%clk 0:00:22.6]} 35... axb5 {[%clk 0:00:33.9]} 36. cxb5
{[%clk 0:00:23.4]} 36... Ke7 {[%clk 0:00:19]} 37. Qc7+ {[%clk 0:00:21.9]} 37...
Ke6 {[%clk 0:00:17.8]} 38. Qb6+ {[%clk 0:00:18.7]} 38... Kf5 {[%clk 0:00:16.3]}
39. a6 {[%clk 0:00:20.2]} 39... bxa6 {[%clk 0:00:16.2]} 40. bxa6 {[%clk
0:00:21.5]} 40... g5 {[%clk 0:00:16]} 41. a7 {[%clk 0:00:21.6]} 41... g4 {[%clk
0:00:16.2]} 42. hxg4+ {[%clk 0:00:21.5]} 42... Kxg4 {[%clk 0:00:17.7]} 43. Qe6+
{[%clk 0:00:22]} 43... Kg5 {[%clk 0:00:15.9]} 44. Qg8+ {[%clk 0:00:22.8]} 44...
Kh5 {[%clk 0:00:14.5]} 45. Qe8+ {[%clk 0:00:21.8]} 45... Kg5 {[%clk 0:00:14.9]}
46. Qg8+ {[%clk 0:00:21.2]} 46... Kh5 {[%clk 0:00:16]} 47. Kg3 {[%clk
0:00:13.1]} 47... Qxe3+ {[%clk 0:00:15.6]} 48. Kh2 {[%clk 0:00:12]} 48... Qxa7
{[%clk 0:00:17.1]} 49. Qe6 {[%clk 0:00:10.2]} 49... Qg7 {[%clk 0:00:15.2]} 50.
Qh3+ {[%clk 0:00:10.4]} 50... Kg6 {[%clk 0:00:15.3]} 51. Qg4+ {[%clk 0:00:12]}
51... Kh7 {[%clk 0:00:16]} 52. Qf5+ {[%clk 0:00:13.3]} 52... Qg6 {[%clk
0:00:17.1]} 53. Qd7+ {[%clk 0:00:14.7]} 53... Qg7 {[%clk 0:00:18.6]} 54. Qf5+
{[%clk 0:00:15.8]} 54... Kh8 {[%clk 0:00:19.7]} 55. Qc8+ {[%clk 0:00:16.8]}
55... Kh7 {[%clk 0:00:20.9]} 56. Qf5+ {[%clk 0:00:17.7]} 1/2-1/2

[Event "*** Titled Tuesday 3|2 Blitz (Late)"]
[Site "Chess.com"]
[Date "2016.12.06"]
[Round "5"]
[White "Pierrebl"]
[Black "SPEEDSKATER"]
[Result "0-1"]
[WhiteElo "2430"]
[BlackElo "2344"]
[TimeControl "180+2"]
[EndTime "18:00:48 PST"]
[Termination "SPEEDSKATER won on time"]

1. e4 {[%clk 0:03:02]} 1... e6 {[%clk 0:02:57.6]} 2. d4 {[%clk 0:03:01.8]} 2...
d5 {[%clk 0:02:59.1]} 3. Nd2 {[%clk 0:03:03.7]} 3... c5 {[%clk 0:02:59.6]} 4.
exd5 {[%clk 0:03:04.9]} 4... Qxd5 {[%clk 0:02:57]} 5. Ngf3 {[%clk 0:03:06.8]}
5... cxd4 {[%clk 0:02:57.4]} 6. Bc4 {[%clk 0:03:07.2]} 6... Qd6 {[%clk
0:02:58.7]} 7. O-O {[%clk 0:03:07.1]} 7... Nf6 {[%clk 0:02:56.3]} 8. Nb3 {[%clk
0:03:08.2]} 8... Nc6 {[%clk 0:02:56.6]} 9. Nbxd4 {[%clk 0:03:09.2]} 9... Nxd4
{[%clk 0:02:56.1]} 10. Qxd4 {[%clk 0:03:11.1]} 10... Qxd4 {[%clk 0:02:55.1]} 11.
Nxd4 {[%clk 0:03:13]} 11... a6 {[%clk 0:02:56.1]} 12. Bf4 {[%clk 0:03:12]} 12...
Bd7 {[%clk 0:02:56.2]} 13. Be2 {[%clk 0:03:11.4]} 13... Bc5 {[%clk 0:02:53.9]}
14. Nb3 {[%clk 0:03:10]} 14... Bb6 {[%clk 0:02:46.4]} 15. Bf3 {[%clk 0:03:09.7]}
15... O-O-O {[%clk 0:02:46.9]} 16. c4 {[%clk 0:03:03.1]} 16... Ba4 {[%clk
0:02:32.1]} 17. Rfc1 {[%clk 0:02:42.9]} 17... Rhe8 {[%clk 0:02:26.1]} 18. Kf1
{[%clk 0:02:27.2]} 18... e5 {[%clk 0:02:05.5]} 19. Bg3 {[%clk 0:02:24.7]} 19...
Bxb3 {[%clk 0:01:54.3]} 20. axb3 {[%clk 0:02:26.6]} 20... Bc5 {[%clk 0:01:55.7]}
21. Rd1 {[%clk 0:01:59.5]} 21... Rxd1+ {[%clk 0:01:31.8]} 22. Rxd1 {[%clk
0:01:59.8]} 22... g5 {[%clk 0:01:32.6]} 23. h3 {[%clk 0:01:41.9]} 23... Bd4
{[%clk 0:01:25.4]} 24. Rd2 {[%clk 0:01:28.2]} 24... h5 {[%clk 0:01:20.3]} 25. b4
{[%clk 0:01:19.1]} 25... Rg8 {[%clk 0:00:39.1]} 26. c5 {[%clk 0:00:52.8]} 26...
g4 {[%clk 0:00:38.7]} 27. hxg4 {[%clk 0:00:40.1]} 27... hxg4 {[%clk 0:00:40.6]}
28. Be2 {[%clk 0:00:37]} 28... Ne4 {[%clk 0:00:33]} 29. Rc2 {[%clk 0:00:37.6]}
29... Nxg3+ {[%clk 0:00:23]} 30. fxg3 {[%clk 0:00:39.5]} 30... f5 {[%clk
0:00:24.2]} 31. Bc4 {[%clk 0:00:22.9]} 31... Rh8 {[%clk 0:00:24.1]} 32. Ke2
{[%clk 0:00:21.3]} 32... Kc7 {[%clk 0:00:24.4]} 33. Be6 {[%clk 0:00:20]} 33...
Rf8 {[%clk 0:00:22.8]} 34. Kd3 {[%clk 0:00:20.6]} 34... Rf6 {[%clk 0:00:23.4]}
35. Bd5 {[%clk 0:00:21.2]} 35... Rh6 {[%clk 0:00:24.2]} 36. Kc4 {[%clk
0:00:13.8]} 36... Bg1 {[%clk 0:00:24.8]} 37. Re2 {[%clk 0:00:13.6]} 37... e4
{[%clk 0:00:26]} 38. b5 {[%clk 0:00:12.6]} 38... axb5+ {[%clk 0:00:26]} 39. Kxb5
{[%clk 0:00:14.5]} 39... e3 {[%clk 0:00:27.6]} 40. b4 {[%clk 0:00:15.6]} 40...
Bf2 {[%clk 0:00:28.4]} 41. Ra2 {[%clk 0:00:16.3]} 41... Kb8 {[%clk 0:00:24.7]}
42. Bc4 {[%clk 0:00:16.4]} 42... Bxg3 {[%clk 0:00:23.3]} 43. Bd3 {[%clk
0:00:15.2]} 43... Rf6 {[%clk 0:00:23.5]} 44. Re2 {[%clk 0:00:14]} 44... Bf2
{[%clk 0:00:23.7]} 45. Ra2 {[%clk 0:00:13.7]} 45... f4 {[%clk 0:00:24.8]} 46.
Be4 {[%clk 0:00:13.4]} 46... f3 {[%clk 0:00:25.3]} 47. gxf3 {[%clk 0:00:15.3]}
47... gxf3 {[%clk 0:00:27.1]} 48. Bd3 {[%clk 0:00:16.6]} 48... Re6 {[%clk
0:00:26.3]} 49. Bc4 {[%clk 0:00:14.4]} 49... Re7 {[%clk 0:00:27]} 50. Kb6 {[%clk
0:00:05.5]} 50... e2 {[%clk 0:00:26.4]} 51. Rd2 {[%clk 0:00:06.2]} 51... Kc8
{[%clk 0:00:21.1]} 52. Bd3 {[%clk 0:00:03.5]} 52... Re6+ {[%clk 0:00:20.6]} 53.
Kb5 {[%clk 0:00:04.1]} 53... e1=Q {[%clk 0:00:21.9]} 54. Bf5 {[%clk 0:00:04.3]}
54... Qxd2 {[%clk 0:00:22.9]} 55. Bxe6+ {[%clk 0:00:05.7]} 55... Kc7 {[%clk
0:00:24.6]} 0-1

[Event "*** Titled Tuesday 3|2 Blitz (Late)"]
[Site "Chess.com"]
[Date "2016.12.06"]
[Round "5"]
[White "CemilCan"]
[Black "Viaje"]
[Result "0-1"]
[WhiteElo "2479"]
[BlackElo "2280"]
[TimeControl "180+2"]
[EndTime "18:01:14 PST"]
[Termination "Viaje won on time"]

1. e4 {[%clk 0:03:01.9]} 1... c5 {[%clk 0:03:01]} 2. Nf3 {[%clk 0:03:02.4]} 2...
d6 {[%clk 0:03:02.5]} 3. Bb5+ {[%clk 0:03:03]} 3... Bd7 {[%clk 0:03:03.2]} 4.
Bxd7+ {[%clk 0:03:04]} 4... Qxd7 {[%clk 0:03:05.1]} 5. c4 {[%clk 0:03:05.1]}
5... Nf6 {[%clk 0:03:05.6]} 6. Nc3 {[%clk 0:03:06]} 6... g6 {[%clk 0:03:06.1]}
7. O-O {[%clk 0:03:06.8]} 7... Bg7 {[%clk 0:03:06.9]} 8. d4 {[%clk 0:03:08.4]}
8... cxd4 {[%clk 0:03:08.8]} 9. Nxd4 {[%clk 0:03:09.8]} 9... O-O {[%clk
0:03:10.1]} 10. f3 {[%clk 0:03:11.1]} 10... Rc8 {[%clk 0:03:11.5]} 11. b3 {[%clk
0:03:06.5]} 11... d5 {[%clk 0:03:12.4]} 12. exd5 {[%clk 0:03:03.4]} 12... Nxd5
{[%clk 0:03:12.4]} 13. Nxd5 {[%clk 0:03:04]} 13... e6 {[%clk 0:03:13.3]} 14. Bh6
{[%clk 0:03:05.3]} 14... exd5 {[%clk 0:03:13.9]} 15. Bxg7 {[%clk 0:03:06.1]}
15... Kxg7 {[%clk 0:03:15.6]} 16. cxd5 {[%clk 0:02:56.8]} 16... Qxd5 {[%clk
0:03:16.2]} 17. Ne2 {[%clk 0:02:55.1]} 17... Qc5+ {[%clk 0:03:12.6]} 18. Kh1
{[%clk 0:02:54.3]} 18... Nc6 {[%clk 0:03:14.1]} 19. Rc1 {[%clk 0:02:54.6]} 19...
Qe7 {[%clk 0:03:14.3]} 20. Ng3 {[%clk 0:02:50.9]} 20... Rd8 {[%clk 0:03:14.4]}
21. Qc2 {[%clk 0:02:50.4]} 21... Rac8 {[%clk 0:03:14]} 22. Qc3+ {[%clk
0:02:48.6]} 22... Qf6 {[%clk 0:03:14.1]} 23. Qe3 {[%clk 0:02:46.2]} 23... Qe5
{[%clk 0:03:05.6]} 24. Qf2 {[%clk 0:02:45.3]} 24... Qa5 {[%clk 0:03:01.9]} 25.
Ne4 {[%clk 0:02:44.6]} 25... Qe5 {[%clk 0:02:39.5]} 26. Rfe1 {[%clk 0:02:29.3]}
26... Qd4 {[%clk 0:02:39.7]} 27. Qg3 {[%clk 0:02:24.4]} 27... Qe5 {[%clk
0:02:39]} 28. Qh4 {[%clk 0:02:23.4]} 28... h6 {[%clk 0:02:21.2]} 29. Nc5 {[%clk
0:02:17.2]} 29... Qc7 {[%clk 0:02:16.3]} 30. b4 {[%clk 0:02:16]} 30... Qb6
{[%clk 0:02:11.8]} 31. a3 {[%clk 0:02:14.6]} 31... Nd4 {[%clk 0:01:59.7]} 32.
Qg3 {[%clk 0:02:03.5]} 32... Nf5 {[%clk 0:01:50.4]} 33. Qe5+ {[%clk 0:02:02.7]}
33... Kg8 {[%clk 0:01:50.2]} 34. Ne4 {[%clk 0:02:01.1]} 34... Rxc1 {[%clk
0:01:46.4]} 35. Rxc1 {[%clk 0:02:03]} 35... Qd4 {[%clk 0:01:38.4]} 36. Qxd4
{[%clk 0:01:54.2]} 36... Rxd4 {[%clk 0:01:36.4]} 37. Kg1 {[%clk 0:01:46.9]}
37... Rd3 {[%clk 0:01:36.7]} 38. Rc7 {[%clk 0:01:46.1]} 38... Rxa3 {[%clk
0:01:35.1]} 39. Rxb7 {[%clk 0:01:46.9]} 39... Ra2 {[%clk 0:01:27.8]} 40. Nc3
{[%clk 0:01:29.6]} 40... Rc2 {[%clk 0:01:26.4]} 41. Nd5 {[%clk 0:01:28.8]} 41...
Nh4 {[%clk 0:01:20.6]} 42. Rxa7 {[%clk 0:01:24.4]} 42... Rxg2+ {[%clk
0:01:20.8]} 43. Kf1 {[%clk 0:01:25.4]} 43... Rb2 {[%clk 0:01:20.5]} 44. Ra3
{[%clk 0:01:19.3]} 44... Nf5 {[%clk 0:01:17]} 45. Ke1 {[%clk 0:01:13.9]} 45...
Nd4 {[%clk 0:01:15]} 46. Kd1 {[%clk 0:01:14.8]} 46... Rxh2 {[%clk 0:01:03.1]}
47. f4 {[%clk 0:01:06.7]} 47... h5 {[%clk 0:01:01.2]} 48. Ke1 {[%clk 0:01:07.3]}
48... h4 {[%clk 0:00:59.4]} 49. Kf1 {[%clk 0:01:05.7]} 49... Rb2 {[%clk
0:00:59.3]} 50. Rd3 {[%clk 0:01:02.7]} 50... Nc6 {[%clk 0:00:57.3]} 51. f5
{[%clk 0:00:57.8]} 51... g5 {[%clk 0:00:53.2]} 52. f6 {[%clk 0:00:55.1]} 52...
Nxb4 {[%clk 0:00:49.1]} 53. Ne7+ {[%clk 0:00:56.2]} 53... Kh7 {[%clk 0:00:49]}
54. Rd8 {[%clk 0:00:54]} 54... Rb3 {[%clk 0:00:40.2]} 55. Kg2 {[%clk 0:00:50.8]}
55... Nd3 {[%clk 0:00:35]} 56. Rg8 {[%clk 0:00:46.6]} 56... Ne5 {[%clk
0:00:29.5]} 57. Rg7+ {[%clk 0:00:46.6]} 57... Kh6 {[%clk 0:00:28.5]} 58. Nf5+
{[%clk 0:00:45.5]} 58... Kh5 {[%clk 0:00:29.2]} 59. Nd6 {[%clk 0:00:44.9]} 59...
h3+ {[%clk 0:00:26.8]} 60. Kh1 {[%clk 0:00:46.1]} 60... Kh4 {[%clk 0:00:25.8]}
61. Rh7+ {[%clk 0:00:39]} 61... Kg4 {[%clk 0:00:23.8]} 62. Rg7 {[%clk
0:00:36.3]} 62... Nf3 {[%clk 0:00:23.9]} 0-1

[Event "*** Titled Tuesday 3|2 Blitz (Late)"]
[Site "Chess.com"]
[Date "2016.12.06"]
[Round "6"]
[White "LPSupi"]
[Black "HarutyunianTigranK"]
[Result "1-0"]
[WhiteElo "2615"]
[BlackElo "2628"]
[TimeControl "180+2"]
[EndTime "18:07:00 PST"]
[Termination "LPSupi won by resignation"]

1. d4 {[%clk 0:03:01.2]} 1... d5 {[%clk 0:03:00.7]} 2. c4 {[%clk 0:03:02.4]}
2... e6 {[%clk 0:03:01.3]} 3. Nf3 {[%clk 0:03:02.9]} 3... Nf6 {[%clk 0:03:02]}
4. Nc3 {[%clk 0:03:04.1]} 4... Be7 {[%clk 0:03:02]} 5. Bg5 {[%clk 0:03:04.8]}
5... O-O {[%clk 0:03:02.8]} 6. e3 {[%clk 0:03:04.6]} 6... h6 {[%clk 0:03:04.2]}
7. Bh4 {[%clk 0:03:05.8]} 7... b6 {[%clk 0:03:05.5]} 8. Be2 {[%clk 0:02:58.4]}
8... Bb7 {[%clk 0:03:06]} 9. Bxf6 {[%clk 0:02:59.5]} 9... Bxf6 {[%clk
0:03:06.4]} 10. cxd5 {[%clk 0:03:00.4]} 10... exd5 {[%clk 0:03:07.6]} 11. b4
{[%clk 0:03:02.1]} 11... c5 {[%clk 0:03:06.8]} 12. bxc5 {[%clk 0:03:01.9]} 12...
bxc5 {[%clk 0:03:08]} 13. Rb1 {[%clk 0:03:03.5]} 13... Bc6 {[%clk 0:03:06.4]}
14. O-O {[%clk 0:02:51.3]} 14... Nd7 {[%clk 0:03:07.4]} 15. Bb5 {[%clk
0:02:46.5]} 15... Qc7 {[%clk 0:03:07.4]} 16. Qd3 {[%clk 0:02:30.8]} 16... Rac8
{[%clk 0:02:34.4]} 17. Rfc1 {[%clk 0:02:26.3]} 17... Rfd8 {[%clk 0:02:28.3]} 18.
h3 {[%clk 0:01:52.5]} 18... g6 {[%clk 0:02:25.1]} 19. dxc5 {[%clk 0:01:35.4]}
19... Nxc5 {[%clk 0:02:24.1]} 20. Qd1 {[%clk 0:01:35.8]} 20... Bxb5 {[%clk
0:02:10.3]} 21. Nxb5 {[%clk 0:01:34.2]} 21... Ne4 {[%clk 0:02:10.3]} 22. Rxc7
{[%clk 0:01:30.6]} 1-0

[Event "*** Titled Tuesday 3|2 Blitz (Late)"]
[Site "Chess.com"]
[Date "2016.12.06"]
[Round "6"]
[White "calemcc"]
[Black "chesstatour"]
[Result "1-0"]
[WhiteElo "2110"]
[BlackElo "1889"]
[TimeControl "180+2"]
[EndTime "18:07:59 PST"]
[Termination "calemcc won by resignation"]

1. d4 {[%clk 0:03:02]} 1... f5 {[%clk 0:02:58.3]} 2. c4 {[%clk 0:02:58.2]} 2...
Nf6 {[%clk 0:02:58.5]} 3. Nf3 {[%clk 0:02:54.2]} 3... g6 {[%clk 0:02:59.2]} 4.
g3 {[%clk 0:02:47.2]} 4... Bg7 {[%clk 0:03:00.6]} 5. Bg2 {[%clk 0:02:48.7]} 5...
O-O {[%clk 0:03:02]} 6. O-O {[%clk 0:02:50.3]} 6... d6 {[%clk 0:03:03.1]} 7. b4
{[%clk 0:02:50.6]} 7... c6 {[%clk 0:02:55.6]} 8. Bb2 {[%clk 0:02:51.7]} 8... Na6
{[%clk 0:02:52.9]} 9. Qb3 {[%clk 0:02:50.9]} 9... Kh8 {[%clk 0:02:51.9]} 10.
Nbd2 {[%clk 0:02:51.6]} 10... Bd7 {[%clk 0:02:52.3]} 11. a4 {[%clk 0:02:50.3]}
11... Nc7 {[%clk 0:02:53.3]} 12. Rfe1 {[%clk 0:02:47.5]} 12... Rb8 {[%clk
0:02:53.6]} 13. b5 {[%clk 0:02:43.4]} 13... Ne6 {[%clk 0:02:37.8]} 14. e4 {[%clk
0:02:37.1]} 14... fxe4 {[%clk 0:02:26.3]} 15. Nxe4 {[%clk 0:02:37.2]} 15... Nxe4
{[%clk 0:02:25.8]} 16. Rxe4 {[%clk 0:02:39.1]} 16... c5 {[%clk 0:02:21.6]} 17.
d5 {[%clk 0:02:30.9]} 17... Nc7 {[%clk 0:02:05.7]} 18. Bxg7+ {[%clk 0:02:29.3]}
18... Kxg7 {[%clk 0:02:07.6]} 19. Rae1 {[%clk 0:02:29.6]} 19... Re8 {[%clk
0:01:58.6]} 20. Qc3+ {[%clk 0:02:22]} 20... Kg8 {[%clk 0:01:54.9]} 21. Qe3
{[%clk 0:02:07.1]} 21... e5 {[%clk 0:01:53.1]} 22. dxe6 {[%clk 0:02:06.5]} 22...
Bxe6 {[%clk 0:01:52.5]} 23. Qh6 {[%clk 0:02:03.5]} 23... Bf5 {[%clk 0:01:18.1]}
24. Ng5 {[%clk 0:01:59.5]} 24... Qd7 {[%clk 0:01:17.5]} 25. Rxe8+ {[%clk
0:02:00.1]} 25... Rxe8 {[%clk 0:00:49.1]} 26. Rxe8+ {[%clk 0:02:00.1]} 26...
Nxe8 {[%clk 0:00:47.3]} 27. Bd5+ {[%clk 0:01:59.7]} 1-0